fUST/lending_fUST_20250407
["ID","MTS","AMOUNT","RATE_DAILY","PERIOD"]
[357265653,1743965446479,-1710.26,0.00043835,120]
[357265654,1743965446489,-1710.26,0.00043835,120]
[357265655,1743965446499,-1710.26,0.00043835,120]
[357265656,1743965446509,-1710.26,0.00043835,120]
[357265657,1743965446518,-1710.3133206,0.00043835,120]
[357265658,1743965446528,-151.0,0.00043835,120]
[357265659,1743965446538,-289.736524,0.00043835,120]
[357265661,1743965446548,-233.98102893,0.00043835,120]
[357265662,1743965446558,-151.0,0.00043835,120]
[357265663,1743965446568,-151.0,0.00043835,30]
[357265665,1743965446578,-151.0,0.00043835,120]
[357265666,1743965446589,-500.0,0.00043835,120]
[357265667,1743965446599,-500.0,0.00043835,120]
[357265668,1743965446610,-500.0,0.00043835,120]
[357265670,1743965446624,-500.0,0.00043835,120]
[357265671,1743965446634,-500.0,0.00043835,120]
[357265673,1743965446644,-500.0,0.00043835,120]
[357265674,1743965446655,-500.0,0.00043835,120]
[357265675,1743965446665,-500.0,0.00043835,120]
[357265676,1743965446675,-500.0,0.00043835,120]
[357265677,1743965446685,-514.66793608,0.00043835,120]
[357265678,1743965446696,-500.0,0.00043835,120]
[357265679,1743965446707,-500.0,0.00043835,120]
[357265680,1743965446717,-500.0,0.00043835,120]
[357265681,1743965446728,-500.0,0.00043835,120]
[357265682,1743965446738,-500.0,0.00043835,120]
[357265683,1743965446749,-500.0,0.00043835,120]
[357265684,1743965446761,-500.0,0.00043835,120]
[357265685,1743965446771,-500.0,0.00043835,120]
[357265686,1743965446782,-500.0,0.00043835,120]
[357265688,1743965446793,-244.55,0.00043835,120]
[357265690,1743965446803,-500.0,0.00043835,120]
[357265692,1743965446814,-500.0,0.00043835,120]
[357265694,1743965446824,-500.0,0.00043835,120]
[357265696,1743965446834,-514.9220557,0.00043835,120]
[357265698,1743965446845,-588.18986066,0.00043835,120]
[357265700,1743965446855,-424.32279055,0.00043835,20]
[357265702,1743965446866,-1244.29,0.00043835,120]
[357265704,1743965446880,-1000.0,0.00043835,3]
[357265706,1743965446890,-2000.0,0.00043836,10]
[357265708,1743965446900,-10000.0,0.00043836,2]
[357265709,1743965446910,-1244.29,0.00043863,120]
[357265710,1743965446921,-1244.29,0.0004389,120]
[357265711,1743965446932,-1244.29,0.00043917,120]
[357265712,1743965446942,-1244.29,0.00043945,120]
[357265713,1743965446952,-1244.29,0.00043972,120]
[357265714,1743965446962,-1244.29,0.00043999,120]
[357265715,1743965446973,-12525.30748765,0.00044,10]
[357265716,1743965446983,-1244.29,0.00044027,120]
[357265717,1743965446997,-1244.29,0.00044054,120]
[357265718,1743965447008,-1244.29,0.00044082,120]
[357265719,1743965447018,-1244.29,0.00044109,120]
[357265720,1743965447028,-1000.0,0.00044109,3]
[357265721,1743965447039,-1244.29,0.00044136,120]
[357265722,1743965447049,-1244.29,0.00044164,120]
[357265723,1743965447059,-1244.29,0.00044191,120]
[357265724,1743965447070,-1244.29,0.00044219,120]
[357265725,1743965447081,-1244.29,0.00044246,120]
[357265726,1743965447091,-1244.29,0.00044273,120]
[357265727,1743965447101,-542.0,0.00044277,2]
[357265728,1743965447111,-1478.0,0.00044277,2]
[357265729,1743965447125,-553.362,0.00044277,2]
[357265730,1743965447135,-1244.29,0.00044301,120]
[357265731,1743965447145,-4321.14753298,0.00044314,18]
[357265733,1743965447156,-1244.29,0.00044328,120]
[357265735,1743965447166,-1244.29,0.00044356,120]
[357265737,1743965447177,-1244.29,0.00044383,120]
[357265739,1743965447188,-1000.0,0.00044383,3]
[357265740,1743965447198,-10481.63196797,0.00044384,2]
[357265741,1743965447208,-1244.29,0.0004441,120]
[357265742,1743965447218,-1244.29,0.00044438,120]
[357265743,1743965447228,-1244.39,0.00044465,120]
[357265744,1743965447238,-2027.15,0.00044477,30]
[357265745,1743965447248,-1000.0,0.00044657,3]
[357265746,1743965447258,-1505.2648116,0.00044872,4]
[357265747,1743965447269,-1000.0,0.00044931,3]
[357265748,1743965447279,-151.0,0.00045,120]
[357265749,1743965447289,-173257.46678229,0.00045,30]
[357265750,1743965447322,-320.74051982,0.00040683,2]
[357265751,1743965447333,-20532.86805417,0.00045,30]
[357265752,1743965447343,-151.0,0.00045,120]
[357265753,1743965447353,-160.0,0.00045,10]
[357265754,1743965447363,-160.0,0.00045,30]
[357265755,1743965447377,-470.68914564,0.00045,120]
[357265756,1743965447387,-254.0,0.00045,90]
[357265757,1743965447398,-12525.30748765,0.00045,30]
[357265758,1743965447408,-2000.0,0.00045,15]
[357265759,1743965447419,-153.154032,0.00045,120]
[357265760,1743965447430,-226.865903,0.00045,120]
[357265761,1743965447441,-226.865903,0.00045,120]
[357265762,1743965447451,-610.295962,0.00045,120]
[357265763,1743965447462,-610.295962,0.00045,120]
[357265764,1743965447473,-4321.14753298,0.00045176,19]
[357265765,1743965447483,-151.0,0.00045176,120]
[357265766,1743965447493,-151.0,0.00045176,120]
[357265767,1743965447504,-151.0,0.00045176,120]
[357265768,1743965447514,-151.0,0.00045176,120]
[357265769,1743965447524,-215.53708,0.00045176,120]
[357265770,1743965447535,-500.0,0.00045205,7]
[357265771,1743965447545,-1000.0,0.00045205,3]
[357265772,1743965447555,-838.25016954,0.00045262,30]
[357265773,1743965447565,-157.926232,0.00045307,10]
[357265774,1743965447574,-500.0,0.00045479,9]
[357265775,1743965447585,-1000.0,0.00045479,3]
[357265776,1743965447595,-800.0,0.00045621,14]
[357265777,1743965447605,-1500.0,0.000457,50]
[357265778,1743965447616,-500.0,0.00045753,11]
[357265779,1743965447629,-1000.0,0.00045753,3]
[357265781,1743965447639,-1002.730521,0.000458,49]
[357265783,1743965447650,-800.0,0.00045876,14]
[357265785,1743965447660,-500.0,0.000459,100]
[357265786,1743965447670,-800.0,0.00045953,14]
[357265787,1743965447680,-800.0,0.00045995,14]
[357265788,1743965447690,-153.93,0.00046,39]
[357265789,1743965447700,-153.93,0.00046,39]
[357265790,1743965447710,-153.93,0.00046,39]
[357265791,1743965447721,-153.93,0.00046,39]
[357265793,1743965447731,-151.0,0.00046,120]
[357265794,1743965447740,-500.0,0.00046027,13]
[357265796,1743965447750,-1000.0,0.00046027,3]
[357265797,1743965447760,-4321.14753298,0.00046038,19]
[357265798,1743965447770,-183.341497,0.00046038,120]
[357265799,1743965447781,-266.730666,0.00046072,120]
[357265801,1743965447794,-151.0,0.00046072,120]
[357265803,1743965447804,-220.922546,0.00046072,120]
[357265805,1743965447814,-220.922546,0.00046072,120]
[357265807,1743965447827,-800.0,0.00046086,14]
[357265809,1743965447837,-151.0,0.00046088,120]
[357265811,1743965447847,-151.0,0.00046088,120]
[357265813,1743965447858,-152.981406,0.00046088,120]
[357265814,1743965447869,-152.981406,0.00046088,120]
[357265817,1743965447879,-151.0,0.00046088,120]
[357265819,1743965447890,-151.0,0.00046088,120]
[357265820,1743965447901,-6585.14784298,0.000461,120]
[357265822,1743965447912,-187.6,0.00046122,14]
[357265824,1743965447923,-3146.67219391,0.0004613,28]
[357265825,1743965447933,-800.0,0.00046131,14]
[357265826,1743965447944,-2369.93226325,0.00046139,2]
[357265827,1743965447954,-1927.703767,0.0004614,18]
[357265828,1743965447964,-1000.0,0.0004616,18]
[357265829,1743965447973,-1000.0,0.0004618,18]
[357265830,1743965447983,-1087.661887,0.0004618,18]
[357265831,1743965447993,-151.0,0.00046188,120]
[357265832,1743965448003,-151.0,0.00046188,120]
[357265833,1743965448013,-203.511233,0.00046188,120]
[357265834,1743965448023,-203.511233,0.00046188,120]
[357265835,1743965448032,-203.511233,0.00046188,120]
[357265836,1743965448042,-203.511233,0.00046188,120]
[357265837,1743965448052,-203.511233,0.00046188,120]
[357265838,1743965448062,-203.511233,0.00046188,120]
[357265839,1743965448072,-203.511233,0.00046188,120]
[357265840,1743965448082,-203.511233,0.00046188,120]
[357265841,1743965448093,-203.511233,0.00046188,120]
[357265842,1743965448103,-203.511233,0.00046188,120]
[357265843,1743965448114,-203.511233,0.00046188,120]
[357265844,1743965448127,-203.511233,0.00046188,120]
[357265845,1743965448137,-203.511233,0.00046188,120]
[357265846,1743965448148,-203.511233,0.00046188,120]
[357265847,1743965448159,-151.0,0.00046188,120]
[357265848,1743965448170,-151.0,0.00046188,120]
[357265849,1743965448181,-151.0,0.00046188,120]
[357265850,1743965448191,-151.0,0.00046188,120]
[357265851,1743965448202,-151.0,0.00046188,120]
[357265852,1743965448212,-151.0,0.00046188,120]
[357265853,1743965448223,-151.0,0.00046188,120]
[357265854,1743965448234,-151.0,0.00046188,120]
[357265855,1743965448245,-151.0,0.00046188,120]
[357265856,1743965448255,-151.0,0.00046188,120]
[357265857,1743965448265,-151.0,0.00046188,120]
[357265858,1743965448275,-151.0,0.00046188,2]
[357265859,1743965448286,-151.0,0.00046188,2]
[357265860,1743965448299,-151.0,0.00046188,2]
[357265861,1743965448310,-226.87258,0.00046188,2]
[357265862,1743965448322,-441.55642,0.00046188,120]
[357265863,1743965448332,-441.55642,0.00046188,120]
[357265864,1743965448343,-441.55642,0.00046188,120]
[357265865,1743965448353,-441.55642,0.00046188,120]
[357265866,1743965448364,-441.55642,0.00046188,120]
[357265867,1743965448382,-441.55642,0.00046188,120]
[357265868,1743965448393,-441.55642,0.00046188,120]
[357265869,1743965448568,-441.55642,0.00046188,120]
[357265870,1743965448579,-441.55642,0.00046188,120]
[357265871,1743965448590,-441.55642,0.00046188,120]
[357265872,1743965448601,-441.55642,0.00046188,120]
[357265873,1743965448611,-441.55642,0.00046188,120]
[357265874,1743965448626,-441.55642,0.00046188,120]
[357265875,1743965448636,-441.55642,0.00046188,120]
[357265876,1743965448647,-151.0,0.00046188,120]
[357265877,1743965448658,-180.307923,0.00046188,120]
[357265878,1743965448668,-1000.0,0.000462,19]
[357265879,1743965448679,-1000.0,0.000462,19]
[357265880,1743965448690,-1500.0,0.000462,50]
[357265881,1743965448700,-150.5,0.000462,30]
[357265882,1743965448711,-1460.0,0.00046206,120]
[357265883,1743965448721,-151.0,0.00046207,120]
[357265884,1743965448732,-151.0,0.00046207,30]
[357265885,1743965448744,-151.0,0.00046207,120]
[357265886,1743965448754,-151.0,0.00046207,120]
[357265887,1743965448765,-151.0,0.00046207,120]
[357265888,1743965448775,-155.051134,0.00046207,120]
[357265889,1743965448787,-155.051134,0.00046207,120]
[357265890,1743965448798,-151.0,0.00046208,120]
[357265891,1743965448807,-151.0,0.00046208,120]
[357265892,1743965448817,-151.0,0.00046208,120]
[357265893,1743965448828,-151.0,0.00046208,120]
[357265894,1743965448838,-151.0,0.00046208,120]
[357265895,1743965448853,-151.638786,0.00046208,120]
[357265896,1743965448872,-251.236804,0.00046208,120]
[357265897,1743965448883,-151.0,0.00046208,120]
[357265898,1743965448893,-251.236804,0.00046208,120]
[357265899,1743965448904,-151.0,0.00046208,120]
[357265900,1743965448915,-251.236804,0.00046208,120]
[357265901,1743965448925,-151.0,0.00046208,120]
[357265902,1743965448935,-251.236804,0.00046208,120]
[357265903,1743965448946,-151.0,0.00046208,120]
[357265904,1743965448957,-251.236804,0.00046208,120]
[357265905,1743965448967,-251.236804,0.00046208,120]
[357265906,1743965448978,-251.236804,0.00046208,120]
[357265907,1743965448988,-251.236804,0.00046208,120]
[357265908,1743965448999,-251.236804,0.00046208,120]
[357265909,1743965449009,-251.236804,0.00046208,120]
[357265910,1743965449020,-251.236804,0.00046208,120]
[357265911,1743965449031,-251.236804,0.00046208,120]
[357265912,1743965449040,-251.236804,0.00046208,120]
[357265913,1743965449052,-151.0,0.00046208,120]
[357265914,1743965449062,-151.0,0.00046208,120]
[357265915,1743965449073,-251.236804,0.00046208,120]
[357265916,1743965449083,-151.0,0.00046208,120]
[357265917,1743965449094,-251.236804,0.00046208,120]
[357265918,1743965449104,-251.236804,0.00046208,120]
[357265919,1743965449115,-251.236804,0.00046208,120]
[357265920,1743965449128,-238.71296,0.00046208,120]
[357265921,1743965449139,-251.236804,0.00046208,120]
[357265922,1743965449150,-251.236804,0.00046208,120]
[357265923,1743965449160,-251.236802,0.00046208,120]
[357265924,1743965449171,-151.0,0.00046208,120]
[357265925,1743965449182,-151.0,0.00046208,120]
[357265926,1743965449192,-151.0,0.00046208,120]
[357265927,1743965449203,-151.0,0.00046208,120]
[357265928,1743965449213,-151.0,0.00046208,120]
[357265929,1743965449223,-151.0,0.00046208,120]
[357265930,1743965449233,-151.0,0.00046208,120]
[357265931,1743965449244,-151.0,0.00046208,120]
[357265932,1743965449254,-151.0,0.00046208,120]
[357265933,1743965449264,-151.0,0.00046208,120]
[357265934,1743965449274,-247.637252,0.00046208,120]
[357265935,1743965449285,-151.0,0.00046208,120]
[357265936,1743965449295,-151.0,0.00046208,120]
[357265937,1743965449307,-151.0,0.00046208,120]
[357265938,1743965449317,-151.0,0.00046208,120]
[357265939,1743965449330,-151.0,0.00046208,120]
[357265940,1743965449340,-151.0,0.00046208,120]
[357265941,1743965449351,-151.0,0.00046208,120]
[357265942,1743965449362,-151.0,0.00046208,120]
[357265943,1743965449374,-151.0,0.00046208,120]
[357265944,1743965449384,-151.0,0.00046208,120]
[357265945,1743965449395,-151.0,0.00046208,120]
[357265946,1743965449406,-151.0,0.00046208,120]
[357265947,1743965449417,-151.0,0.00046208,120]
[357265948,1743965449428,-201.96222,0.00046208,120]
[357265949,1743965449438,-299.077588,0.00046208,120]
[357265950,1743965449448,-151.0,0.00046208,30]
[357265951,1743965449458,-151.0,0.00046208,30]
[357265952,1743965449469,-151.0,0.00046208,30]
[357265953,1743965449479,-151.0,0.00046208,120]
[357265954,1743965449489,-151.0,0.00046208,120]
[357265955,1743965449500,-151.0,0.00046208,110]
[357265956,1743965449510,-151.0,0.00046208,110]
[357265957,1743965449521,-151.0,0.00046208,110]
[357265958,1743965449531,-151.0,0.00046208,110]
[357265959,1743965449541,-151.0,0.00046208,110]
[357265960,1743965449551,-151.0,0.00046208,120]
[357265961,1743965449561,-151.0,0.00046208,120]
[357265962,1743965449571,-151.0,0.00046208,120]
[357265963,1743965449581,-151.0,0.00046208,120]
[357265964,1743965449600,-151.0,0.00046208,120]
[357265965,1743965449610,-274.068796,0.00046208,120]
[357265966,1743965449623,-151.0,0.00046208,120]
[357265967,1743965449633,-151.0,0.00046208,120]
[357265968,1743965449644,-151.0,0.00046208,120]
[357265969,1743965449654,-151.0,0.00046208,120]
[357265970,1743965449665,-151.0,0.00046208,120]
[357265971,1743965449675,-155.051134,0.00046208,120]
[357265972,1743965449686,-155.051134,0.00046208,120]
[357265973,1743965449697,-155.051134,0.00046208,120]
[357265974,1743965449708,-155.051134,0.00046208,120]
[357265975,1743965449726,-155.051134,0.00046208,120]
[357265976,1743965449743,-155.051134,0.00046208,120]
[357265977,1743965449755,-155.051134,0.00046208,120]
[357265978,1743965449766,-155.051134,0.00046208,120]
[357265979,1743965449778,-155.051134,0.00046208,120]
[357265980,1743965449789,-155.051134,0.00046208,120]
[357265981,1743965449800,-155.051134,0.00046208,120]
[357265982,1743965449811,-155.051126,0.00046208,120]
[357265983,1743965449822,-184.243624,0.00046208,120]
[357265984,1743965449832,-184.243614,0.00046208,120]
[357265985,1743965449843,-150.5,0.0004621,30]
[357265986,1743965449853,-150.5,0.0004621,30]
[357265987,1743965449863,-150.5,0.0004622,30]
[357265988,1743965449877,-150.5,0.0004622,30]
[357265989,1743965449887,-151.0,0.0004623,120]
[357265990,1743965449898,-151.0,0.0004623,120]
[357265991,1743965449908,-151.0,0.0004623,120]
[357265992,1743965449918,-151.0,0.0004623,120]
[357265993,1743965449928,-151.0,0.0004623,120]
[357265994,1743965449939,-151.0,0.0004623,120]
[357265995,1743965449948,-151.0,0.0004623,120]
[357265996,1743965449958,-151.0,0.0004623,120]
[357265997,1743965449967,-151.0,0.0004623,120]
[357265998,1743965449977,-151.0,0.0004623,120]
[357265999,1743965449987,-151.0,0.0004623,120]
[357266000,1743965449997,-210.11117,0.0004623,120]
[357266001,1743965450007,-152.981406,0.0004623,120]
[357266002,1743965450017,-152.981406,0.0004623,120]
[357266003,1743965450028,-152.981406,0.0004623,120]
[357266004,1743965450038,-152.981406,0.0004623,120]
[357266005,1743965450048,-152.981406,0.0004623,120]
[357266006,1743965450058,-152.981406,0.0004623,120]
[357266007,1743965450068,-152.981406,0.0004623,120]
[357266008,1743965450078,-152.981406,0.0004623,120]
[357266009,1743965450088,-152.981406,0.0004623,120]
[357266010,1743965450099,-152.981406,0.0004623,120]
[357266011,1743965450109,-152.981406,0.0004623,120]
[357266012,1743965450120,-152.981396,0.0004623,120]
[357266013,1743965450130,-151.0,0.0004623,120]
[357266014,1743965450140,-151.0,0.0004623,120]
[357266015,1743965450152,-151.0,0.0004623,120]
[357266016,1743965450166,-151.0,0.0004623,120]
[357266017,1743965450175,-151.0,0.0004623,120]
[357266018,1743965450185,-151.0,0.0004623,120]
[357266019,1743965450195,-151.0,0.0004623,120]
[357266020,1743965450206,-151.0,0.0004623,120]
[357266021,1743965450217,-151.0,0.0004623,120]
[357266022,1743965450227,-269.12981,0.0004623,120]
[357266023,1743965450236,-220.922546,0.0004623,120]
[357266024,1743965450247,-220.922546,0.0004623,120]
[357266025,1743965450257,-220.922546,0.0004623,120]
[357266026,1743965450267,-220.922546,0.0004623,120]
[357266027,1743965450277,-220.922546,0.0004623,120]
[357266028,1743965450286,-220.922546,0.0004623,120]
[357266029,1743965450298,-277.744114,0.0004623,120]
[357266030,1743965450309,-220.922546,0.0004623,120]
[357266031,1743965450319,-220.922546,0.0004623,120]
[357266032,1743965450330,-220.922546,0.0004623,120]
[357266033,1743965450340,-220.922546,0.0004623,120]
[357266034,1743965450350,-220.922546,0.0004623,120]
[357266035,1743965450364,-220.922546,0.0004623,120]
[357266036,1743965450379,-151.0,0.0004623,120]
[357266037,1743965450389,-152.760974,0.0004623,120]
[357266038,1743965450401,-226.865903,0.0004623,120]
[357266039,1743965450411,-226.865903,0.0004623,120]
[357266040,1743965450421,-226.865903,0.0004623,120]
[357266041,1743965450431,-226.865903,0.0004623,120]
[357266042,1743965450441,-226.865903,0.0004623,120]
[357266043,1743965450451,-226.865903,0.0004623,120]
[357266044,1743965450461,-226.865903,0.0004623,120]
[357266045,1743965450471,-226.865903,0.0004623,120]
[357266046,1743965450480,-226.865903,0.0004623,120]
[357266047,1743965450490,-226.865903,0.0004623,120]
[357266048,1743965450500,-226.865903,0.0004623,120]
[357266049,1743965450510,-226.865903,0.0004623,120]
[357266050,1743965450520,-610.295962,0.0004623,120]
[357266051,1743965450530,-610.295962,0.0004623,120]
[357266052,1743965450540,-610.295962,0.0004623,120]
[357266053,1743965450550,-610.295962,0.0004623,120]
[357266054,1743965450560,-610.295962,0.0004623,120]
[357266055,1743965450570,-610.295962,0.0004623,120]
[357266056,1743965450580,-610.295962,0.0004623,120]
[357266057,1743965450590,-610.295962,0.0004623,120]
[357266058,1743965450603,-610.295962,0.0004623,120]
[357266059,1743965450613,-610.295962,0.0004623,120]
[357266060,1743965450627,-610.295962,0.0004623,120]
[357266061,1743965450637,-610.295972,0.0004623,120]
[357266062,1743965450647,-32054.27357044,0.00046239,61]
[357266063,1743965451272,-11449.0944568,0.00046239,61]
[357266064,1743965451309,-332.60791905,0.00042052,2]
[357266065,1743965451320,-344.91441206,0.00043421,2]
[357266066,1743965451330,-357.6762453,0.0004479,2]
[357266067,1743965451340,-3893.73976817,0.00046239,61]
[357266068,1743965451352,-9189.6306315,0.00046239,61]
[357266069,1743965451364,-544.02414125,0.00046239,61]
[357266070,1743965451379,-1434.25653439,0.00046239,61]
[357266071,1743965451392,-403.67280999,0.00046239,61]
[357266072,1743965451405,-4792.53244023,0.00046239,61]
[357266073,1743965451415,-102114.40060952,0.00046239,61]
[357266074,1743965451428,-2000.000946,0.00046239,61]
[357266075,1743965451440,-4508.01457459,0.00046239,61]
[357266076,1743965451452,-5721.25267918,0.00046239,61]
[357266077,1743965451463,-1189.55020828,0.00046239,61]
[357266078,1743965451475,-3237.6767732,0.00046239,61]
[357266079,1743965451547,-370.91026638,0.00046159,2]
[357266080,1743965451557,-887.16308394,0.00046239,61]
[357266081,1743965451570,-7264.35839598,0.00046239,61]
[357266082,1743965451582,-1074.39448964,0.00046239,61]
[357266083,1743965451594,-11095.0000001,0.00046239,61]
[357266084,1743965451607,-19195.53663447,0.00046239,61]
[357266085,1743965451622,-10405.69268117,0.00046239,61]
[357266086,1743965451632,-234716.95576623,0.00046239,20]
[357266087,1743965451644,-401.32949645,0.00046239,20]
[357266088,1743965451692,176.66766,0.00013699,2]
[357266089,1743965451716,-793.8,0.0003383,30]
[357266090,1743965452364,-160.0,0.000219,3]
[357266091,1743965461777,-1105.27899589,0.000219,3]
[357266094,1743966002074,350.0,0.00022,90]
[357266123,1743966636509,-204.640403,0.00021382,2]
[357266124,1743966636519,-98.84838041,0.00021665,2]
[357266125,1743966636565,-201.15161959,0.00021665,2]
[357266126,1743966636575,-66.73818533,0.00021666,2]
[357266127,1743966636624,-24833.26181467,0.00021666,2]
[357266128,1743966636634,-400.0,0.00021666,2]
[357266129,1743966636644,-11420.02849176,0.000219,3]
[357266130,1743966636653,-160.0,0.000219,3]
[357266131,1743966636669,-160.0,0.000219,3]
[357266132,1743966636679,-12525.30748765,0.000219,3]
[357266133,1743966636689,-4892.91415838,0.000224,4]
[357266134,1743966636699,-174.932998,0.00022556,2]
[357266135,1743966636711,-551.68,0.00022563,3]
[357266136,1743966636720,-192.80020087,0.00022572,2]
[357266137,1743966636730,-500.0,0.00022572,2]
[357266138,1743966636740,-184.22413723,0.00022572,2]
[357266139,1743966636751,-500.0,0.00022572,2]
[357266140,1743966636761,-500.0,0.00022572,2]
[357266141,1743966636771,-500.0,0.00022572,2]
[357266142,1743966636780,-500.0,0.00022572,2]
[357266143,1743966636790,-500.0,0.00022572,2]
[357266144,1743966636800,-500.0,0.00022572,2]
[357266145,1743966636811,-500.0,0.00022572,2]
[357266146,1743966636820,-500.0,0.00022572,2]
[357266147,1743966636830,-500.0,0.00022572,2]
[357266148,1743966636840,-500.0,0.00022572,2]
[357266149,1743966636850,-500.0,0.00022572,2]
[357266150,1743966636863,-500.0,0.00022572,2]
[357266151,1743966636873,-500.0,0.00022572,2]
[357266152,1743966636883,-500.0,0.00022572,2]
[357266153,1743966636893,-500.0,0.00022572,2]
[357266154,1743966636904,-500.0,0.00022572,2]
[357266155,1743966636914,-500.0,0.00022572,2]
[357266156,1743966636925,-500.0,0.00022572,2]
[357266157,1743966636935,-500.0,0.00022572,2]
[357266158,1743966636945,-500.0,0.00022572,2]
[357266159,1743966636955,-500.0,0.00022572,2]
[357266160,1743966636966,-500.0,0.00022572,2]
[357266161,1743966636977,-500.0,0.00022572,2]
[357266162,1743966636987,-500.0,0.00022572,2]
[357266163,1743966636997,-500.0,0.00022572,2]
[357266164,1743966637007,-500.0,0.00022572,2]
[357266165,1743966637018,-500.0,0.00022572,2]
[357266166,1743966637029,-500.0,0.00022572,2]
[357266167,1743966637039,-500.0,0.00022572,2]
[357266168,1743966637050,-500.0,0.00022572,2]
[357266169,1743966637060,-500.0,0.00022572,2]
[357266170,1743966637070,-500.0,0.00022572,2]
[357266171,1743966637079,-500.0,0.00022572,2]
[357266172,1743966637089,-500.0,0.00022572,2]
[357266173,1743966637099,-500.0,0.00022572,2]
[357266174,1743966637115,-500.0,0.00022572,2]
[357266175,1743966637125,-500.0,0.00022572,2]
[357266176,1743966637135,-500.0,0.00022572,2]
[357266177,1743966637145,-500.0,0.00022572,2]
[357266178,1743966637155,-500.0,0.00022572,2]
[357266179,1743966637166,-500.0,0.00022572,2]
[357266180,1743966637176,-500.0,0.00022572,2]
[357266181,1743966637186,-500.0,0.00022572,2]
[357266182,1743966637196,-500.0,0.00022572,2]
[357266183,1743966637206,-500.0,0.00022572,2]
[357266184,1743966637216,-500.0,0.00022572,2]
[357266185,1743966637227,-500.0,0.00022572,2]
[357266186,1743966637237,-500.0,0.00022572,2]
[357266187,1743966637247,-500.0,0.00022572,2]
[357266188,1743966637257,-500.0,0.00022572,2]
[357266189,1743966637267,-500.0,0.00022572,2]
[357266190,1743966637277,-500.0,0.00022572,2]
[357266191,1743966637287,-500.0,0.00022572,2]
[357266192,1743966637297,-500.0,0.00022572,2]
[357266193,1743966637307,-500.0,0.00022572,2]
[357266194,1743966637317,-500.0,0.00022572,2]
[357266195,1743966637327,-500.0,0.00022572,2]
[357266196,1743966637337,-500.0,0.00022572,2]
[357266197,1743966637348,-500.0,0.00022572,2]
[357266198,1743966637361,-500.0,0.00022572,2]
[357266199,1743966637372,-500.0,0.00022572,2]
[357266200,1743966637382,-500.0,0.00022572,2]
[357266201,1743966637392,-500.0,0.00022572,2]
[357266202,1743966637403,-500.0,0.00022572,2]
[357266203,1743966637414,-500.0,0.00022572,2]
[357266204,1743966637424,-500.0,0.00022572,2]
[357266205,1743966637435,-501.76601832,0.00022572,2]
[357266206,1743966637445,-500.0,0.00022572,2]
[357266207,1743966637456,-500.0,0.00022572,2]
[357266208,1743966637615,-500.0,0.00022572,2]
[357266209,1743966637640,-500.0,0.00022572,2]
[357266210,1743966637651,-500.0,0.00022572,2]
[357266211,1743966637663,-500.0,0.00022572,2]
[357266212,1743966637673,-500.0,0.00022572,2]
[357266213,1743966637684,-500.0,0.00022572,2]
[357266214,1743966637697,-500.0,0.00022572,2]
[357266215,1743966637709,-500.0,0.00022572,2]
[357266216,1743966637719,-500.0,0.00022572,2]
[357266217,1743966637729,-196.26106929,0.00022572,2]
[357266218,1743966637739,-500.0,0.00022572,2]